bitfinex/quotes_SOLUSD_20250806
["timestamp","ask_amount","ask_price","bid_price","bid_amount"]
[1754517375488,76.03558085,168.24,168.23,0.06]
[1754517375664,76.03558085,168.24,168.21,0.06]
[1754517375665,15.39053871,168.23,168.21,1e-08]
[1754517375864,25.39053871,168.21,168.19,1e-08]
[1754517376185,26.0,168.13,168.1,0.71]
[1754517376380,49.31300317,168.12,168.1,0.71]
[1754517376689,3.97866257,168.11,168.1,0.71]
[1754517378590,3.96924659,168.11,168.1,0.71]
[1754517379293,51.3439906,168.12,168.1,0.71]
[1754517379588,51.3439906,168.12,168.11,0.65]
[1754517379785,55.31003182,168.12,168.11,0.65]
[1754517381387,51.3439906,168.12,168.11,0.65]
[1754517384080,145.9,168.13,168.11,6.59848611]
[1754517384267,145.9,168.13,168.12,0.65]
[1754517385391,145.9,168.13,168.12,6.59813228]
[1754517386894,41.36,168.16,168.12,10.57247288]
[1754517387098,41.36,168.16,168.12,9.92247288]
[1754517387273,41.36,168.16,168.13,0.65]
[1754517387473,41.36,168.17,168.13,0.65]
[1754517387979,41.36,168.17,168.14,5.94742476]
[1754517388191,41.36,168.17,168.15,0.65]
[1754517393201,6.91798573,168.16,168.12,0.06]
[1754517393420,6.19798573,168.13,168.12,0.06]
[1754517393597,47.55798573,168.13,168.12,0.06]
[1754517393800,48.27798573,168.13,168.12,0.06]
[1754517394109,50.66198973,168.13,168.12,0.06]
[1754517396317,50.4117815,168.13,168.12,0.06]
[1754517396703,54.22576423,168.13,168.12,0.06]
[1754517397320,56.60976823,168.13,168.12,0.06]
[1754517397915,54.22576423,168.13,168.12,0.06]
[1754517399289,58.18021109,168.13,168.12,0.06]
[1754517404021,57.46021109,168.13,168.12,0.06]
[1754517404410,58.18080755,168.13,168.12,0.06]
[1754517404605,60.56481155,168.13,168.12,0.06]
[1754517412735,54.36682582,168.13,168.12,0.06]
[1754517418719,51.98282182,168.13,168.12,0.06]
[1754517418938,3.95504332,168.13,168.12,0.73]
[1754517419125,3.95504332,168.14,168.12,0.73]
[1754517419327,45.33504332,168.16,168.12,0.73]
[1754517419627,6.009496,168.14,168.12,0.73]
[1754517419813,3.95504332,168.14,168.12,0.73]
[1754517420012,3.95504332,168.15,168.12,0.73]
[1754517420235,3.95504332,168.14,168.12,0.73]
[1754517420428,3.95504332,168.13,168.12,6.67784217]
[1754517420736,3.95504332,168.15,168.13,0.67]
[1754517420940,3.95504332,168.14,168.13,0.67]
[1754517421640,11.17150938,168.17,168.13,0.67]
[1754517421641,3.95504332,168.15,168.13,6.6177785]
[1754517421936,3.95504332,168.14,168.13,5.9477785]
[1754517422122,3.95504332,168.16,168.13,5.9477785]
[1754517422321,3.95504332,168.15,168.13,5.9477785]
[1754517422512,3.95504332,168.16,168.14,0.67]
[1754517422714,41.41,168.18,168.14,0.67]
[1754517422915,3.9777982,168.17,168.14,6.86799688]
[1754517423115,3.9777982,168.16,168.15,0.67]
[1754517423542,3.9777982,168.17,168.15,6.61707106]
[1754517423727,3.9777982,168.16,168.15,5.94707106]
[1754517424030,3.9777982,168.17,168.15,5.94707106]
[1754517424242,3.9777982,168.16,168.15,5.94707106]
[1754517424446,3.9777982,168.17,168.15,6.61707106]
[1754517424614,3.9777982,168.16,168.15,5.94707106]
[1754517424820,3.9777982,168.17,168.15,5.94707106]
[1754517425014,3.9777982,168.16,168.15,5.94707106]
[1754517425342,3.9777982,168.17,168.15,6.61707106]
[1754517425638,3.9777982,168.16,168.15,5.94707106]
[1754517425837,3.9777982,168.17,168.15,6.19799688]
[1754517426032,3.9777982,168.16,168.15,6.19799688]
[1754517426231,3.9777982,168.17,168.16,0.67]
[1754517426928,3.9777982,168.17,168.16,12.81471429]
[1754517427132,0.03,168.18,168.16,12.81471429]
[1754517427339,0.03,168.18,168.17,6.86799688]
[1754517428734,0.03,168.18,168.17,12.81436067]
[1754517431847,48.26799688,168.18,168.12,4.037798]
[1754517432027,6.19799688,168.14,168.12,0.06]
[1754517432547,10.16746002,168.14,168.12,0.06]
[1754517432722,0.68,168.13,168.12,0.06]
[1754517433048,6.87799688,168.13,168.12,0.06]
[1754517433244,10.84746002,168.13,168.12,0.06]
[1754517434137,4.64946314,168.13,168.12,0.06]
[1754517435825,10.84746002,168.13,168.12,0.06]
[1754517436645,16.79523852,168.13,168.12,0.06]
[1754517437030,19.17938352,168.13,168.12,0.06]
[1754517437545,26.0,168.11,168.1,0.06]
[1754517437847,77.58746002,168.11,168.1,0.06]
[1754517438047,78.26746002,168.11,168.1,0.06]
[1754517438435,80.65189002,168.11,168.1,0.06]
[1754517438731,86.60037613,168.11,168.1,0.06]
[1754517441043,32.35389314,168.11,168.1,0.06]
[1754517441348,3.96946314,168.11,168.1,0.74]
[1754517441561,45.38946314,168.12,168.1,0.74]
[1754517441732,3.96946314,168.11,168.1,0.74]
[1754517458068,9.91794925,168.11,168.1,0.74]
[1754517458282,16.77594613,168.11,168.1,0.06]
[1754517458469,10.57794925,168.11,168.1,0.06]
[1754517458652,16.77594613,168.11,168.1,0.06]
[1754517464656,10.82746002,168.11,168.1,0.06]
[1754517465060,3.96946314,168.11,168.1,0.06]
[1754517466263,10.16746002,168.11,168.1,0.06]
[1754517466875,3.96946314,168.11,168.1,0.06]
[1754517467378,3.99946314,168.13,168.1,0.74]
[1754517467580,41.45,168.13,168.1,0.74]
[1754517467763,3.96946314,168.12,168.1,0.74]
[1754517468279,6.85799688,168.11,168.1,0.06]
[1754517468514,47.61799688,168.11,168.1,0.06]
[1754517468790,51.58131391,168.11,168.1,0.06]
[1754517468966,45.38331703,168.11,168.1,0.06]
[1754517469169,45.38331703,168.11,168.1,0.75]
[1754517470058,45.38331703,168.11,168.1,0.06]
[1754517471881,3.96331703,168.11,168.1,0.75]
[1754517472186,3.96331703,168.12,168.1,0.75]
[1754517472816,3.96331703,168.12,168.1,6.69871355]
[1754517473120,3.96331703,168.12,168.11,0.69]
[1754517474705,3.99331703,168.12,168.11,0.69]
[1754517477022,3.99331703,168.12,168.1,6.69871355]
[1754517477192,3.96331703,168.11,168.1,0.75]
[1754517477897,3.96331703,168.11,168.1,0.06]
[1754517478209,46.03331703,168.11,168.1,0.06]
[1754517480811,45.38331703,168.11,168.1,0.06]
[1754517487815,50.35682953,168.11,168.1,0.06]
[1754517488203,5.94,168.1,168.08,6.69945943]
[1754517488406,3.96331703,168.09,168.08,6.69945943]
[1754517489314,3.96331703,168.09,168.08,0.75]
[1754517489520,3.96331703,168.09,168.08,6.69954783]
[1754517490331,3.96331703,168.09,168.08,0.75]
[1754517492094,3.96331703,168.09,168.08,6.69954783]
[1754517493624,3.96331703,168.09,168.08,0.75]
[1754517495822,3.96331703,168.09,168.08,6.69954783]
[1754517511536,3.96331703,168.09,168.08,0.06]
[1754517512138,3.96331703,168.09,168.08,6.00954783]
[1754517516071,3.96331703,168.09,168.08,0.06]
[1754517516353,4.63331703,168.09,168.08,0.06]
[1754517517843,3.96331703,168.09,168.08,0.06]
[1754517520259,4.63331703,168.09,168.08,0.06]
[1754517520752,3.96331703,168.09,168.08,0.06]
[1754517521267,3.96331703,168.09,168.08,0.76]
[1754517523961,3.96331703,168.09,168.08,0.06]
[1754517525962,3.96331703,168.09,168.08,0.76]
[1754517526263,3.96331703,168.09,168.08,4.72872527]
[1754517526835,3.96331703,168.09,168.08,0.76]
[1754517528585,3.96331703,168.09,168.08,6.70954783]
[1754517529074,3.96331703,168.09,168.08,26.06881181]
[1754517529433,5.97,168.1,168.09,41.39053871]
[1754517529434,1e-08,168.1,168.09,41.39053871]
[1754517529764,0.03,168.13,168.12,0.28432314]
[1754517529946,1e-08,168.14,168.12,25.30739626]
[1754517530265,0.03,168.18,168.16,0.28432314]
[1754517530464,0.03,168.18,168.16,41.66432314]
[1754517530637,0.7,168.18,168.17,3.96872527]
[1754517531581,0.03,168.18,168.17,3.96872527]
[1754517531743,0.03,168.18,168.17,9.91508906]
[1754517534055,0.7,168.18,168.09,5.94919388]
[1754517534259,0.7,168.18,168.14,3.96872527]
[1754517535967,6.64608995,168.18,168.14,3.96872527]
[1754517536150,3.96872527,168.16,168.1,3.96872527]
[1754517536355,3.96872527,168.15,168.1,3.96872527]
[1754517536556,0.67,168.14,168.1,3.96872527]
[1754517536754,0.67,168.14,168.1,6.19926602]
[1754517537175,0.67,168.14,168.1,12.14805423]
[1754517541774,3.96909406,168.15,168.11,6.19926602]
[1754517541980,3.96909406,168.15,168.14,6.19926602]
[1754517542149,145.93,168.16,168.13,6.19926602]
[1754517542356,146.6,168.16,168.13,6.19926602]
[1754517542554,146.6,168.16,168.13,12.14678634]
[1754517544759,146.6,168.16,168.14,12.14650135]
[1754517544980,0.03,168.16,168.15,21.58980473]
[1754517545157,0.03,168.16,168.15,6.19926602]
[1754517545358,0.03,168.16,168.15,47.57926602]
[1754517546376,0.03,168.18,168.17,0.28432314]
[1754517546565,0.03,168.18,168.17,21.58980473]
[1754517546771,0.03,168.18,168.17,27.53616852]
[1754517549982,0.03,168.18,168.17,21.3369025]
[1754517550288,0.03,168.18,168.17,27.53616852]
[1754517553086,0.03,168.18,168.17,68.91616852]
[1754517559186,0.74,168.18,168.17,68.91616852]
[1754517559386,0.74,168.18,168.17,53.50562981]
[1754517560991,0.03,168.18,168.17,53.50562981]
[1754517561193,0.03,168.18,168.17,68.89616852]
[1754517563789,0.03,168.18,168.17,94.89616852]
[1754517564595,0.74,168.18,168.17,79.50562981]
[1754517565592,1e-08,168.18,168.17,94.89616852]
[1754517568076,1e-08,168.18,168.17,97.27790052]
[1754517572979,0.03,168.24,168.21,15.10621557]
[1754517573204,0.03,168.24,168.22,41.34]
[1754517573380,0.03,168.24,168.23,5.944243]
[1754517575183,0.74,168.24,168.23,5.944243]
[1754517576692,0.74,168.24,168.22,47.28450998]
[1754517578480,0.74,168.24,168.22,5.94450998]
[1754517581215,0.71,168.23,168.22,5.94450998]
[1754517584399,0.74,168.23,168.22,5.94450998]
[1754517584796,0.03,168.23,168.22,12.143776]
[1754517596826,0.03,168.23,168.22,9.90552941]
[1754517597530,0.03,168.24,168.23,15.10621557]
[1754517597706,0.03,168.24,168.23,60.407235]
[1754517597906,0.03,168.24,168.23,61.117235]
[1754517598233,0.03,168.24,168.23,63.4984]
[1754517598403,0.03,168.24,168.23,69.442643]
[1754517600213,0.03,168.25,168.24,0.28432314]
[1754517600424,4.78573229,168.3,168.27,0.28432314]
[1754517600425,1e-08,168.3,168.27,0.28432314]
[1754517600625,1e-08,168.3,168.29,47.28775561]
[1754517600934,1e-08,168.3,168.29,47.57207875]
[1754517601228,1e-08,168.3,168.29,42.10053871]
[1754517601600,0.71000001,168.3,168.28,6.18154004]
[1754517601801,0.71000001,168.3,168.29,41.34]
[1754517602004,1e-08,168.3,168.29,47.52154004]
[1754517602204,1e-08,168.3,168.29,53.46366375]
[1754517602815,0.71000001,168.3,168.29,5.94212371]
[1754517603203,0.71000001,168.3,168.29,12.12366375]
[1754517603418,0.71000001,168.3,168.29,5.94212371]
[1754517603732,0.71000001,168.3,168.26,6.18154004]
[1754517603912,6.89154005,168.3,168.25,32.18154004]
[1754517604111,0.71,168.29,168.25,47.56154004]
[1754517604444,0.71,168.29,168.26,5.94307918]
[1754517608227,0.71,168.29,168.26,47.32307918]
[1754517608850,0.71,168.28,168.26,53.50461922]
[1754517609324,1e-08,168.3,168.27,22.28207875]
[1754517609513,1e-08,168.3,168.29,21.57207875]
[1754517610116,1e-08,168.3,168.29,22.28207875]
[1754517610342,1e-08,168.3,168.29,48.28207875]
[1754517610527,1e-08,168.3,168.29,50.66225175]
[1754517611316,1e-08,168.3,168.29,56.60437546]
[1754517611525,1e-08,168.33,168.32,26.0]
[1754517611842,1e-08,168.35,168.33,0.28432314]
[1754517612040,1e-08,168.35,168.34,89.74207875]
[1754517612340,1e-08,168.35,168.34,63.74207875]
[1754517613345,1e-08,168.35,168.34,69.68243754]
[1754517614532,0.71,168.42,168.39,0.28432314]
[1754517614725,0.71,168.42,168.41,6.18154004]
[1754517614926,0.71,168.42,168.41,6.46586318]
[1754517615331,3.97189701,168.47,168.42,5.9375371]
[1754517615531,0.71,168.46,168.43,47.66154004]
[1754517616044,0.71,168.45,168.43,47.66154004]
[1754517616236,0.71,168.45,168.44,6.18154004]
[1754517617032,0.71,168.45,168.43,0.28432314]
[1754517617352,0.71,168.44,168.43,12.40304776]
[1754517617528,6.89154004,168.44,168.39,6.18154004]
[1754517617728,0.71,168.43,168.39,41.46]
[1754517618245,0.71,168.42,168.41,6.18154004]
[1754517618545,0.71,168.42,168.4,6.46586318]
[1754517618768,0.71,168.41,168.4,0.28432314]
[1754517618970,0.71,168.41,168.4,6.46586318]
[1754517619170,0.71,168.41,168.4,0.28432314]
[1754517620653,0.71,168.41,168.31,15.56330316]
[1754517620972,6.89154004,168.41,168.36,0.28432314]
[1754517621266,0.72,168.4,168.36,48.14586318]
[1754517621869,0.72,168.4,168.37,5.93930035]
[1754517623558,14.84090501,168.46,168.37,5.93930035]
[1754517623746,0.72,168.41,168.39,5.93859492]
[1754517623945,0.72,168.41,168.39,47.61859492]
[1754517626266,0.72,168.44,168.39,54.51013496]
[1754517626559,0.72,168.44,168.39,69.35662228]
[1754517626749,0.72,168.43,168.39,69.35662228]
[1754517629909,0.72,168.43,168.39,75.53816228]
[1754517630267,0.72,168.43,168.39,69.35662228]
[1754517630880,0.03,168.44,168.39,68.64662228]
[1754517631178,0.72,168.42,168.39,68.64662228]
[1754517631781,0.75,168.44,168.39,69.35662228]
[1754517631982,0.75,168.44,168.4,0.71]
[1754517632159,0.75,168.44,168.41,41.64]
[1754517632962,0.75,168.44,168.4,6.89154004]
[1754517633282,0.75,168.44,168.4,48.53154004]
[1754517633676,0.75,168.44,168.41,5.93788967]
[1754517634388,0.03,168.44,168.43,26.0]
[1754517634563,0.03,168.44,168.43,26.71]
[1754517634768,0.03,168.44,168.43,32.89154004]
[1754517635783,0.03,168.44,168.43,32.64718458]
[1754517636683,0.03,168.44,168.43,31.93718458]
[1754517636888,0.03,168.44,168.43,38.11872462]
[1754517637064,0.03,168.44,168.43,38.82872462]
[1754517638170,0.03,168.44,168.43,38.11872462]
[1754517638513,0.75,168.44,168.42,47.55743476]
[1754517639072,0.75,168.44,168.42,5.93743476]
[1754517639295,0.75,168.44,168.42,47.53743476]
[1754517639589,0.03,168.44,168.43,21.39217216]
[1754517639793,0.03,168.44,168.43,27.32935674]
[1754517640373,0.03,168.44,168.43,32.62099074]
[1754517642607,6.04163345,168.44,168.43,5.291634]
[1754517642986,6.04163345,168.44,168.39,47.57835605]
[1754517643290,6.01163345,168.43,168.39,47.57835605]
[1754517643482,0.72,168.42,168.39,47.57835605]
[1754517643677,6.01163345,168.42,168.39,41.64]
[1754517644000,0.72,168.41,168.39,41.64]
[1754517644579,0.72,168.4,168.39,47.5784707]
[1754517645004,0.72,168.4,168.39,41.64]
[1754517645703,0.72,168.4,168.39,47.57859492]
[1754517645937,0.72,168.42,168.38,5.93894761]
[1754517646088,5.29163345,168.43,168.38,5.93894761]
[1754517646286,0.72,168.41,168.38,47.57894761]
[1754517647906,5.29163345,168.42,168.38,47.57894761]
[1754517648088,0.72,168.4,168.38,5.93894761]
[1754517648393,0.72,168.4,168.34,20.39784857]
[1754517648394,26.0,168.36,168.3,5.94166141]
[1754517648586,5.29163345,168.34,168.29,5.94180617]
[1754517648795,5.29163345,168.34,168.29,5.94181144]
[1754517649013,5.96163345,168.34,168.29,5.94181144]
[1754517652509,0.67,168.34,168.29,5.94181144]
[1754517652714,5.96163345,168.34,168.29,5.94181144]
[1754517654214,5.96163345,168.34,168.28,5.94247682]
[1754517654393,5.96163345,168.34,168.28,21.04869239]
[1754517655113,5.96163345,168.34,168.31,0.06]
[1754517655285,11.90199224,168.34,168.31,0.06]
[1754517659815,6.61035879,168.34,168.31,0.06]
[1754517659993,11.90199224,168.34,168.31,0.06]
[1754517663192,15.85760347,168.34,168.31,0.06]
[1754517663597,11.90199224,168.34,168.31,0.06]
[1754517664121,5.96163345,168.34,168.31,0.06]
[1754517664319,5.29163345,168.34,168.31,0.74]
[1754517666211,46.95163345,168.36,168.33,6.68057411]
[1754517666815,26.0,168.38,168.33,6.00057411]
[1754517667002,5.96163345,168.38,168.34,0.68]
[1754517667200,0.67,168.38,168.34,0.68]
[1754517667503,5.29163345,168.39,168.33,11.29220756]
[1754517667710,5.29163345,168.39,168.35,0.68]
[1754517667912,5.29163345,168.39,168.36,0.68]
[1754517668705,41.73,168.4,168.37,5.93930035]
[1754517668916,5.32163345,168.4,168.37,6.61930035]
[1754517669423,5.32163345,168.4,168.38,0.68]
[1754517670220,0.03,168.4,168.38,0.68]
[1754517670407,0.03,168.4,168.39,0.68]
[1754517670726,0.03,168.4,168.39,11.91022837]
[1754517671099,0.03,168.42,168.39,53.01644394]
[1754517671303,0.03,168.42,168.41,5.29163345]
[1754517671513,0.03,168.42,168.4,31.97163345]
[1754517671706,0.03,168.42,168.4,31.29163345]
[1754517672011,0.03,168.42,168.41,0.68]
[1754517673026,0.03,168.42,168.41,53.30006183]
[1754517674825,0.03,168.44,168.43,21.32772329]
[1754517675024,0.03,168.44,168.43,26.61935674]
[1754517675336,0.03,168.44,168.43,27.29935674]
[1754517678414,0.03,168.44,168.43,22.00772329]
[1754517678605,0.03,168.44,168.43,27.29935674]
[1754517679344,0.03,168.44,168.43,68.33935674]
[1754517680637,0.73,168.44,168.43,47.65718458]
[1754517681206,0.03,168.44,168.43,5.93718458]
[1754517683114,0.73,168.44,168.43,5.93718458]
[1754517683324,0.73,168.44,168.42,5.93748961]
[1754517683530,0.7,168.43,168.42,5.93748961]
[1754517684738,0.03,168.44,168.42,5.93748961]
[1754517685036,0.73,168.44,168.42,5.93748961]
[1754517686622,0.03,168.44,168.42,5.93748961]
[1754517687429,0.73,168.44,168.42,5.93748961]
[1754517688528,0.03,168.44,168.42,5.93748961]
[1754517689638,0.03,168.44,168.42,6.60748961]
[1754517689836,0.03,168.44,168.42,11.89912306]
[1754517690344,0.03,168.44,168.42,6.60748961]
[1754517690518,0.03,168.44,168.42,11.22912306]
[1754517691428,0.03,168.44,168.42,11.89912306]
[1754517692718,0.03,168.44,168.42,11.22912306]
[1754517693225,0.03,168.44,168.42,6.60748961]
[1754517693431,0.03,168.44,168.42,11.89912306]
[1754517694424,0.03,168.44,168.42,6.66748961]
[1754517694630,0.03,168.44,168.42,5.99748961]
[1754517695226,0.7,168.43,168.42,5.99748961]
[1754517697115,0.7,168.43,168.42,0.06]
[1754517697342,0.03,168.44,168.42,0.06]
[1754517697842,0.03,168.44,168.42,5.35163345]
[1754517698032,0.03,168.44,168.43,5.29163345]
[1754517698235,0.03,168.44,168.43,5.96163345]
[1754517698663,0.03,168.44,168.43,47.60163345]
[1754517699362,0.03,168.44,168.43,53.53881803]
[1754517699732,0.03,168.44,168.43,68.92935674]
[1754517700252,0.03,168.45,168.44,15.39053871]
[1754517700433,0.03,168.46,168.44,21.35217216]
[1754517700757,0.03,168.46,168.45,57.70053871]
[1754517700924,0.03,168.46,168.45,62.99217216]
[1754517701248,0.03,168.46,168.45,68.92865182]
[1754517702325,0.03,168.46,168.45,68.25865182]
[1754517708943,0.03,168.46,168.45,62.96701837]
[1754517709135,0.03,168.46,168.45,68.25865182]
[1754517709632,0.73,168.46,168.45,5.93647966]
[1754517710547,0.03,168.46,168.45,11.22811311]
[1754517715975,0.03,168.46,168.45,11.28811311]
[1754517717364,0.03,168.46,168.45,5.99647966]
[1754517717561,0.03,168.46,168.45,11.28811311]
[1754517720667,0.73,168.46,168.45,11.28811311]
[1754517720871,0.73,168.46,168.45,0.06]
[1754517721569,10.01232927,168.46,168.43,0.06]
[1754517721757,5.29163345,168.44,168.43,0.06]
[1754517722075,9.28232927,168.44,168.43,0.06]
[1754517722264,3.99069582,168.44,168.43,0.06]
[1754517722570,9.98232927,168.44,168.43,0.06]
[1754517722770,5.99163345,168.44,168.43,0.06]
[1754517723074,9.98232927,168.44,168.43,0.06]
[1754517723955,4.69069582,168.44,168.43,0.06]
[1754517724270,3.99069582,168.45,168.43,0.06]
[1754517724486,3.99069582,168.44,168.43,0.06]
[1754517724860,3.99069582,168.44,168.43,5.35163345]
[1754517725071,0.7,168.45,168.43,5.35163345]
[1754517726673,4.02069582,168.46,168.44,5.29163345]
[1754517726855,0.03,168.46,168.45,11.22811311]
[1754517727877,0.03,168.46,168.45,5.93647966]
[1754517728068,0.03,168.46,168.45,11.22811311]
[1754517728881,0.03,168.46,168.45,53.50811311]
[1754517729385,0.03,168.46,168.45,68.89865182]
[1754517730879,0.03,168.48,168.45,68.89865182]
[1754517731199,0.7,168.56,168.51,15.10621557]
[1754517731483,0.7,168.55,168.53,5.29163345]
[1754517731688,0.7,168.54,168.53,5.29163345]
[1754517731891,0.7,168.54,168.51,5.29163345]
[1754517732098,5.99163345,168.54,168.48,0.28432314]
[1754517732299,9.28072921,168.54,168.49,5.29163345]
[1754517732463,0.7,168.53,168.49,5.29163345]
[1754517732864,0.7,168.53,168.48,41.94432314]
[1754517732865,5.99163345,168.53,168.48,52.88681034]
[1754517733078,5.99163345,168.52,168.47,5.29163345]
[1754517733289,0.7,168.51,168.46,37.22746501]
[1754517733881,9.98072921,168.51,168.46,5.29163345]
[1754517734084,5.99163345,168.5,168.45,5.29163345]
[1754517734390,5.99163345,168.49,168.44,11.22819797]
[1754517734582,0.7,168.48,168.44,11.22819797]
[1754517735072,5.29163345,168.46,168.43,0.06]
[1754517735388,0.7,168.45,168.43,0.06]
[1754517737071,9.9752097,168.45,168.43,0.06]
[1754517737272,15.91176722,168.45,168.43,0.06]
[1754517737477,9.97455438,168.44,168.43,0.06]
[1754517738392,15.91138648,168.44,168.43,0.06]
[1754517740399,9.97455438,168.44,168.43,0.06]
[1754517740895,15.91138648,168.44,168.43,0.06]
[1754517741670,4.68292093,168.44,168.43,0.06]
[1754517741874,9.97455438,168.44,168.43,0.06]
[1754517742678,15.91138648,168.44,168.43,0.06]
[1754517746607,31.30192519,168.44,168.43,0.06]
[1754517746806,26.0,168.41,168.4,0.06]
[1754517747024,76.97455438,168.41,168.4,0.06]
[1754517747180,77.63455438,168.41,168.4,0.06]
[1754517748109,83.57244405,168.41,168.4,0.06]
[1754517748983,88.8640775,168.41,168.4,0.06]
[1754517749580,83.57244405,168.41,168.4,0.06]
[1754517749803,98.67865962,168.41,168.4,0.06]
[1754517749992,98.67865962,168.41,168.33,0.06]
[1754517749993,15.10621557,168.4,168.33,0.06]
[1754517750197,26.0,168.37,168.33,0.06]
[1754517750507,5.29163345,168.34,168.33,0.06]
[1754517752512,5.29163345,168.35,168.33,0.06]
[1754517752818,5.29163345,168.35,168.33,0.77]
[1754517752982,47.01163345,168.36,168.33,0.06]
[1754517753181,5.93872148,168.39,168.34,0.71]
[1754517753400,5.93872148,168.39,168.33,0.06]
[1754517753401,5.29163345,168.37,168.33,0.06]
[1754517753607,5.29163345,168.37,168.35,0.71]
[1754517753818,5.29163345,168.36,168.33,0.06]
[1754517754018,5.29163345,168.36,168.33,0.77]
[1754517754598,5.29163345,168.34,168.33,0.06]
[1754517755012,5.95163345,168.34,168.33,0.06]
[1754517755328,0.66,168.34,168.33,0.06]
[1754517755502,5.95163345,168.34,168.33,0.06]
[1754517756522,5.29163345,168.34,168.33,0.06]
[1754517756697,47.03163345,168.35,168.33,0.06]
[1754517757040,41.74,168.35,168.33,0.77]
[1754517757198,41.74,168.35,168.33,0.06]
[1754517757392,47.03163345,168.37,168.34,0.71]
[1754517757597,41.74,168.37,168.34,0.71]
[1754517757825,47.03163345,168.37,168.34,0.71]
[1754517758425,5.29163345,168.36,168.34,0.71]
[1754517758824,5.29163345,168.36,168.33,6.0005562]
[1754517759130,5.29163345,168.36,168.33,6.7105562]
[1754517759492,5.95163345,168.36,168.33,0.06]
[1754517759696,5.29163345,168.35,168.33,0.06]
[1754517760708,5.9396869,168.36,168.33,0.06]
[1754517760709,5.95163345,168.34,168.33,0.06]
[1754517761921,53.63199224,168.34,168.33,0.06]
[1754517763117,57.58007789,168.34,168.33,0.06]
[1754517763845,53.63199224,168.34,168.33,0.06]
[1754517765023,71.11951381,168.34,168.33,0.06]
[1754517765429,75.06459143,168.34,168.33,0.06]
[1754517765835,71.11951381,168.34,168.33,0.06]
[1754517766352,71.13951381,168.34,168.33,0.06]
[1754517767271,56.03329824,168.34,168.33,0.06]
[1754517767437,53.65199224,168.34,168.33,0.06]
[1754517771052,94.75820781,168.34,168.33,0.06]
[1754517771245,98.69995766,168.34,168.33,0.06]
[1754517771443,94.75820781,168.34,168.33,0.06]
[1754517771642,98.70037933,168.34,168.33,0.06]
[1754517771846,26.0,168.32,168.31,0.06]
[1754517772038,73.01163345,168.32,168.31,0.06]
[1754517772372,73.67163345,168.32,168.31,0.06]
[1754517773670,79.61269808,168.32,168.31,0.06]
[1754517774174,78.95269808,168.32,168.31,0.06]
[1754517775050,79.61269808,168.32,168.31,0.06]
[1754517776380,83.55956443,168.32,168.31,0.06]
[1754517776777,83.55965378,168.32,168.31,0.06]
[1754517777788,71.6669557,168.32,168.31,0.06]
[1754517778087,76.93858915,168.32,168.31,0.06]
[1754517779866,45.6469557,168.32,168.31,0.06]
[1754517780058,50.93858915,168.32,168.31,0.06]
[1754517781878,56.87965378,168.32,168.31,0.06]
[1754517782060,57.53965378,168.32,168.31,0.06]
[1754517782484,51.59858915,168.32,168.31,0.06]
[1754517784183,51.59858915,168.32,168.28,0.2]
[1754517784184,26.0,168.29,168.28,0.2]
[1754517784377,26.0,168.29,168.25,0.2]
[1754517784378,41.10621557,168.26,168.25,0.2]
[1754517784569,15.10621557,168.25,168.23,0.06]
[1754517784770,26.0,168.22,168.16,0.2]
[1754517785065,26.0,168.18,168.16,0.2]
[1754517785296,9.23858915,168.18,168.16,0.2]
[1754517785496,5.29163345,168.18,168.16,0.2]
[1754517785803,0.28432314,168.2,168.17,0.75]
[1754517785804,47.11163345,168.2,168.17,0.75]
[1754517785968,26.0,168.23,168.18,0.69]